[Event "FIDE World Cup O12-B 2024"]
[Site "Batumi"]
[Date "2024.06.23"]
[Round "1.8"]
[White "Atar, Semih Akif"]
[Black "Zhang, Haoxuan(Zj)"]
[Result "0-1"]
[ECO "A36"]
[WhiteElo "1660"]
[BlackElo "1907"]
[Annotator "NA RC"]
[PlyCount "62"]
[EventDate "2024.06.23"]
[EventType "swiss"]
[EventCountry "GEO"]
[SourceTitle "playchess.com"]
[Source "ChessBase"]
[SourceQuality "1"]
[TimeControl "5400+30"]

1. c4 {[%emt 0:00:03]} c5 {[%emt 0:00:06]} 2. g3 {[%emt 0:00:07]} Nc6 {[%emt 0:00:05]} 3. Bg2 {[%emt 0:00:09]} g6 {[%emt 0:00:06]} 4. Nf3 {[%emt 0:01:04]} Bg7 {[%emt 0:00:06]} 5. O-O {[%emt 0:00:51]} e6 {[%emt 0:00:07]} 6. e3 {[%emt 0:01:05]} Nge7 {[%emt 0:00:06]} 7. Nc3 {[%emt 0:01:31]} O-O {[%emt 0:00:10]} 8. a3 {[%emt 0:02:35]} d5 {[%emt 0:00:14]} 9. cxd5 {[%emt 0:06:54]} exd5 {[%emt 0:00:02]} 10. d4 {[%emt 0:00:51]} cxd4 {[%emt 0:03:16]} 11. Nxd4 {[%emt 0:01:13]} Nxd4 {[%emt 0:03:45]} 12. exd4 {[%emt 0:00:08]} Be6 {[%emt 0:01:46]} 13. Be3 {[%emt 0:20:41]} Nf5 {[%emt 0:03:40]} 14. Qd3 {[%emt 0:03:01]} a6 {[%emt 0:02:31]} 15. Ne2 {[%emt 0:05:39]} Nxe3 {[%emt 0:05:15]} 16. Qxe3 {[%emt 0:01:00]} Qb6 {[%emt 0:00:47]} 17. Qd2 {[%emt 0:20:24]} Rac8 {[%emt 0:06:39]} 18. Rac1 {[%emt 0:06:38]} Rfd8 {[%emt 0:01:54]} 19. b4 {[%emt 0:01:03]} Rc4 {[%emt 0:01:41]} 20. Rfd1 {[%emt 0:02:33]} Bg4 {[%emt 0:02:50]} 21. f3 {[%emt 0:05:16]} Bd7 {[%emt 0:01:12]} 22. Rxc4 {[%emt 0:04:02]} dxc4 {[%emt 0:00:05]} 23. Qc3 {[%emt 0:00:50]} Qc7 {[%emt 0:04:32]} 24. Nf4 {[%emt 0:04:33]} b5 {[%emt 0:01:17]} 25. Nd3 {[%emt 0:00:30]} Qd6 {[%emt 0:01:47]} 26. Nf4 {[%emt 0:03:26]} Bf5 {[%emt 0:00:28]} 27. Ne2 {[%emt 0:01:20]} Bd3 {[%emt 0:00:03]} 28. Rxd3 {[%emt 0:00:17]} cxd3 {[%emt 0:00:03]} 29. Qxd3 {[%emt 0:00:11]} Bxd4+ {[%emt 0:00:03]} 30. Qxd4 {[%emt 0:00:30]} Qxd4+ {[%emt 0:00:04]} 31. Nxd4 {[%emt 0:00:08]} Rxd4 {[%emt 0:00:02]} 0-1

[Event "FIDE World Cup O12-B 2024"]
[Site "Batumi"]
[Date "2024.06.23"]
[Round "1.9"]
[White "Garakhanov, Shamsi"]
[Black "Suleymanov, Askhab"]
[Result "1-0"]
[ECO "E90"]
[WhiteElo "1884"]
[BlackElo "1630"]
[Annotator "NA RC"]
[PlyCount "53"]
[EventDate "2024.06.23"]
[EventType "swiss"]
[EventCountry "GEO"]
[SourceTitle "playchess.com"]
[Source "ChessBase"]
[SourceQuality "1"]
[TimeControl "5400+30"]

1. d4 {[%emt 0:00:03]} Nf6 {[%emt 0:00:09]} 2. c4 {[%emt 0:00:05]} g6 {[%emt 0:00:06]} 3. Nc3 {[%emt 0:00:05]} Bg7 {[%emt 0:00:12]} 4. e4 {[%emt 0:00:05]} d6 {[%emt 0:00:14]} 5. Nf3 {[%emt 0:00:08]} O-O {[%emt 0:00:17]} 6. h3 {[%emt 0:00:08]} e5 {[%emt 0:06:40]} 7. d5 {[%emt 0:00:22]} a5 {[%emt 0:01:59]} 8. Be3 {[%emt 0:01:24]} Na6 {[%emt 0:05:33]} 9. g4 {[%emt 0:02:05]} Nd7 {[%emt 0:15:44]} 10. Rg1 {[%emt 0:03:03]} Nac5 {[%emt 0:10:04]} 11. Be2 {[%emt 0:01:42]} Kh8 {[%emt 0:05:49]} 12. g5 {[%emt 0:31:31]} f5 {[%emt 0:10:57]} 13. gxf6 {[%emt 0:00:51]} Qxf6 {[%emt 0:04:00]} 14. h4 {[%emt 0:01:56]} Re8 {[%emt 0:18:58]} 15. h5 {[%emt 0:01:54]} b6 {[%emt 0:08:29]} 16. hxg6 {[%emt 0:00:32]} h6 {[%emt 0:01:03]} 17. Qd2 {[%emt 0:00:16]} Nf8 {[%emt 0:04:07]} 18. Bxh6 {[%emt 0:00:30]} Nxg6 {[%emt 0:01:13]} 19. Rh1 {[%emt 0:02:29]} Kg8 {[%emt 0:01:59]} 20. Bg5 {[%emt 0:01:27]} Qf7 {[%emt 0:01:01]} 21. O-O-O {[%emt 0:01:32]} Bg4 {[%emt 0:01:15]} 22. Nh4 {[%emt 0:01:30]} Bxe2 {[%emt 0:00:54]} 23. Qxe2 {[%emt 0:00:05]} Nf4 {[%emt 0:00:20]} 24. Bxf4 {[%emt 0:00:43]} Qxf4+ {[%emt 0:00:34]} 25. Kb1 {[%emt 0:00:06]} Kf7 {[%emt 0:00:27]} 26. Qh5+ {[%emt 0:00:04]} Kg8 {[%emt 0:00:48]} 27. Nf5 {[%emt 0:00:08]} 1-0

[Event "FIDE World Cup O12-B 2024"]
[Site "Batumi"]
[Date "2024.06.23"]
[Round "1.10"]
[White "Chia, Yu Zhe Ashton"]
[Black "Qu, Haoming"]
[Result "0-1"]
[ECO "B01"]
[WhiteElo "2229"]
[BlackElo "1877"]
[Annotator "RC"]
[PlyCount "114"]
[EventDate "2024.06.23"]
[EventType "swiss"]
[EventCountry "GEO"]
[SourceTitle "playchess.com"]
[Source "ChessBase"]
[SourceQuality "1"]
[TimeControl "5400+30"]

1. e4 {[%emt 0:00:06]} d5 {[%emt 0:00:26]} 2. exd5 {[%emt 0:00:08]} Qxd5 {[%emt 0:00:07]} 3. Nc3 {[%emt 0:00:05]} Qd6 {[%emt 0:00:10]} 4. Nf3 {[%emt 0:00:06]} Nf6 {[%emt 0:00:08]} 5. d4 {[%emt 0:00:17]} c6 {[%emt 0:00:32]} 6. Bd3 {[%emt 0:01:07]} Bg4 {[%emt 0:01:57]} 7. Be3 {[%emt 0:00:10]} Nbd7 {[%emt 0:00:53]} 8. h3 {[%emt 0:00:20]} Bh5 {[%emt 0:01:02]} 9. O-O {[%emt 0:00:29]} e6 {[%emt 0:00:58]} 10. Be2 {[%emt 0:06:25]} Be7 {[%emt 0:06:07]} 11. Qd2 {[%emt 0:00:27]} Qc7 {[%emt 0:03:49]} 12. Bf4 {[%emt 0:03:39]} Bd6 {[%emt 0:02:05]} 13. Bxd6 {[%emt 0:02:06]} Qxd6 {[%emt 0:00:01]} 14. Qe3 {[%emt 0:03:13]} Bxf3 {[%emt 0:02:21]} 15. Bxf3 {[%emt 0:00:34]} O-O {[%emt 0:00:09]} 16. Rad1 {[%emt 0:00:45]} Nd5 {[%emt 0:02:45]} 17. Qd2 {[%emt 0:00:18]} N7f6 {[%emt 0:04:46]} 18. Ne2 {[%emt 0:01:10]} Rad8 {[%emt 0:02:16]} 19. c4 {[%emt 0:00:28]} Ne7 {[%emt 0:00:12]} 20. Qa5 {[%emt 0:00:46]} a6 {[%emt 0:04:29]} 21. Nc3 {[%emt 0:00:33]} Nf5 {[%emt 0:11:45]} 22. d5 {[%emt 0:01:18]} cxd5 {[%emt 0:04:45]} 23. cxd5 {[%emt 0:00:22]} e5 {[%emt 0:00:13]} 24. Be4 {[%emt 0:03:52]} Ne7 {[%emt 0:10:55]} 25. Rfe1 {[%emt 0:05:18]} Nc8 {[%emt 0:09:07]} 26. Bc2 {[%emt 0:01:23]} Nb6 {[%emt 0:04:12]} 27. Bb3 {[%emt 0:01:05]} Rc8 {[%emt 0:02:59]} 28. Ne4 {[%emt 0:02:41]} Nxe4 {[%emt 0:00:15]} 29. Rxe4 {[%emt 0:00:08]} Nd7 {[%emt 0:08:10]} 30. Qb4 {[%emt 0:24:47]} Nc5 {[%emt 0:00:33]} 31. Rc4 {[%emt 0:00:49]} b6 {[%emt 0:01:55]} 32. Rdc1 {[%emt 0:02:31]} Qf6 {[%emt 0:06:46]} 33. Qd2 {[%emt 0:08:05]} Rcd8 {[%emt 0:00:46]} 34. Bd1 {[%emt 0:02:24]} a5 {[%emt 0:00:55]} 35. a3 {[%emt 0:00:15]} Rd6 {[%emt 0:01:59]} 36. b4 {[%emt 0:02:57]} axb4 {[%emt 0:00:03]} 37. axb4 {[%emt 0:00:01]} Ne6 {[%emt 0:00:19]} 38. Rc8 {[%emt 0:04:55]} Nd4 {[%emt 0:01:40]} 39. Rxf8+ {[%emt 0:01:58]} Kxf8 {[%emt 0:00:00]} 40. Qa2 {[%emt 0:00:27]} Rd8 {[%emt 0:01:29]} 41. Rc7 {[%emt 0:15:02]} Qd6 {[%emt 0:01:57]} 42. Rb7 {[%emt 0:00:22]} b5 {[%emt 0:01:21]} 43. Qa7 {[%emt 0:03:28]} Qxd5 {[%emt 0:00:27]} 44. Bg4 {[%emt 0:00:56]} g6 {[%emt 0:02:01]} 45. Bd7 {[%emt 0:01:34]} Kg7 {[%emt 0:01:06]} 46. Rc7 {[%emt 0:00:57]} Ne2+ {[%emt 0:01:07]} 47. Kh2 {[%emt 0:00:27]} Qd1 {[%emt 0:00:08]} 48. f3 {[%emt 0:01:22]} Qd2 {[%emt 0:00:51]} 49. Qc5 {[%emt 0:01:13]} Qf4+ {[%emt 0:00:08]} 50. Kh1 {[%emt 0:00:08]} Ra8 {[%emt 0:00:41]} 51. Ra7 {[%emt 0:00:48]} Ng3+ {[%emt 0:00:23]} 52. Kg1 {[%emt 0:00:07]} Rxa7 {[%emt 0:00:10]} 53. Qxa7 {[%emt 0:00:05]} Qc1+ {[%emt 0:00:02]} 54. Kh2 {[%emt 0:00:59]} Nf1+ {[%emt 0:00:03]} 55. Kh1 {[%emt 0:00:43]} Ne3+ {[%emt 0:00:05]} 56. Kh2 {[%emt 0:00:15]} Qd2 {[%emt 0:00:10]} 57. Be6 {[%emt 0:01:08]} Qxg2# {[%emt 0:00:10]} 0-1

[Event "FIDE World Cup O12-B 2024"]
[Site "Batumi"]
[Date "2024.06.23"]
[Round "1.11"]
[White "Aadik Theophane Lenin"]
[Black "Cronje, Johannes Christiaan"]
[Result "1-0"]
[ECO "A43"]
[WhiteElo "1852"]
[BlackElo "1504"]
[Annotator "NA RC"]
[PlyCount "27"]
[EventDate "2024.06.23"]
[EventType "swiss"]
[EventCountry "GEO"]
[SourceTitle "playchess.com"]
[Source "ChessBase"]
[SourceQuality "1"]
[TimeControl "5400+30"]

1. d4 {[%emt 0:00:38]} Nf6 {[%emt 0:00:09]} 2. Nf3 {[%emt 0:00:07]} c5 {[%emt 0:00:15]} 3. d5 {[%emt 0:00:17]} e6 {[%emt 0:01:12]} 4. Nc3 {[%emt 0:02:06]} Nxd5 {[%emt 0:01:38]} 5. Nxd5 {[%emt 0:00:12]} exd5 {[%emt 0:00:08]} 6. Qxd5 {[%emt 0:00:32]} Be7 {[%emt 0:00:49]} 7. e4 {[%emt 0:03:40]} O-O {[%emt 0:00:43]} 8. Bc4 {[%emt 0:03:25]} Kh8 {[%emt 0:03:10]} 9. Qh5 {[%emt 0:01:36]} f5 {[%emt 0:02:10]} 10. Ne5 {[%emt 0:00:37]} h6 {[%emt 0:04:39]} 11. Bxh6 {[%emt 0:00:15]} d5 {[%emt 0:01:30]} 12. Ng6+ {[%emt 0:01:48]} Kg8 {[%emt 0:00:37]} 13. Bxd5+ {[%emt 0:00:33]} Kh7 {[%emt 0:00:19]} 14. Bc1# {[%emt 0:00:09]} 1-0

[Event "FIDE World Cup O12-B 2024"]
[Site "Batumi"]
[Date "2024.06.23"]
[Round "1.12"]
[White "Khubuluri, Zaal"]
[Black "Ibrahimli, Suat"]
[Result "1/2-1/2"]
[ECO "B28"]
[WhiteElo "1501"]
[BlackElo "1852"]
[Annotator "NA RC"]
[PlyCount "60"]
[EventDate "2024.06.23"]
[EventType "swiss"]
[EventCountry "GEO"]
[SourceTitle "playchess.com"]
[Source "ChessBase"]
[SourceQuality "1"]
[TimeControl "5400+30"]

1. e4 {[%emt 0:00:06]} c5 {[%emt 0:00:05]} 2. Nf3 {[%emt 0:00:12]} a6 {[%emt 0:00:03]} 3. c4 {[%emt 0:00:15]} Nc6 {[%emt 0:00:05]} 4. Nc3 {[%emt 0:00:28]} e5 {[%emt 0:03:04]} 5. d3 {[%emt 0:02:38]} Rb8 {[%emt 0:00:23]} 6. a4 {[%emt 0:08:08]} g6 {[%emt 0:00:22]} 7. Be2 {[%emt 0:00:29]} Bg7 {[%emt 0:00:16]} 8. Be3 {[%emt 0:04:21]} d6 {[%emt 0:00:14]} 9. Qd2 {[%emt 0:02:24]} Nge7 {[%emt 0:01:17]} 10. Bh6 {[%emt 0:02:57]} O-O {[%emt 0:00:22]} 11. O-O {[%emt 0:01:50]} Bg4 {[%emt 0:00:28]} 12. h3 {[%emt 0:07:23]} Bxf3 {[%emt 1:29:51]} 13. Bxf3 {[%emt 0:02:27]} Nd4 {[%emt 0:00:30]} 14. Bd1 {[%emt 1:03:52]} Bxh6 {[%emt 0:00:30]} 15. Qxh6 {[%emt 0:00:30]} Kh8 {[%emt 0:00:30]} 16. Qh4 {[%emt 0:00:00]} f6 17. Re1 {[%emt 0:01:00]} Kg7 {[%emt 0:00:00]} 18. Rc1 {[%emt 0:00:00]} Qb6 {[%emt 0:01:30]} 19. Rb1 {[%emt 0:01:00]} Qb4 {[%emt 0:00:00]} 20. Be2 {[%emt 0:00:30]} Qa5 {[%emt 0:00:00]} 21. f4 {[%emt 0:00:00]} exf4 {[%emt 0:01:30]} 22. Qxf4 {[%emt 0:00:00]} Rbd8 23. Qg3 {[%emt 0:01:30]} Rf7 {[%emt 0:00:00]} 24. Bg4 {[%emt 0:00:00]} Nec6 {[%emt 0:00:00]} 25. Rf1 {[%emt 0:00:00]} Ne5 {[%emt 0:00:00]} 26. Rf2 {[%emt 0:00:00]} Rdf8 {[%emt 0:00:00]} 27. Rbf1 {[%emt 0:00:00]} Qb4 {[%emt 0:00:00]} 28. h4 {[%emt 0:00:00]} Nxg4 {[%emt 0:00:00]} 29. Qxg4 {[%emt 0:03:00]} f5 {[%emt 0:04:00]} 30. Qg3 {[%emt 0:00:30]} f4 {[%emt 0:00:30]} 1/2-1/2